fUSD/lending_fUSD_20260702
["ID","MTS","AMOUNT","RATE_DAILY","PERIOD"]
[426887761,1782985832000,-330.28,0.000258,2]
[426887749,1782985832000,-685.16,0.00025,2]
[426887747,1782985832000,-2400.55,0.00025,2]
[426887738,1782985832000,-1112.48,0.00024904,2]
[426887742,1782985832000,-1415.05,0.00025,2]
[426887741,1782985832000,-3303.12,0.00025,2]
[426887735,1782985832000,-1162.87606817,0.00024678,2]
[426887745,1782985832000,-167.59958435,0.00025,2]
[426887746,1782985832000,-200.2142753,0.00025,2]
[426887744,1782985832000,-165.0,0.00025,2]
[426887748,1782985832000,-1028.24,0.00025,2]
[426887758,1782985832000,-150.99,0.00025786,2]
[426887739,1782985832000,-152.61813662,0.00024967,2]
[426887793,1782985838000,-2500.0,0.0002624,2]
[426887783,1782985838000,-1137.03976482,0.00026,2]
[426887794,1782985838000,-14067.66,0.00026333,2]
[426887789,1782985838000,-425.09834133,0.00026135,2]
[426887785,1782985838000,-221.04398295,0.00026,2]
[426887790,1782985838000,-167.49131498,0.00026135,2]
[426887787,1782985838000,-232.65255183,0.00026134,2]
[426887788,1782985838000,-187.96733404,0.00026135,2]
[426887784,1782985838000,-4619.42255365,0.00026,2]
[426887781,1782985838000,-180.86328756,0.0002589,2]
[426887780,1782985838000,-72458.53784579,0.000258,2]
[426887782,1782985838000,-613.71456904,0.0002599,2]
[426887792,1782985838000,-566.97746113,0.00026214,2]
[426887791,1782985838000,-180.86328756,0.0002616,2]
[426887779,1782985838000,-337.84657269,0.000258,2]
[426887777,1782985838000,-8741.18761415,0.000258,2]
[426887778,1782985838000,-11042.98587278,0.000258,2]
[426887776,1782985838000,-2232.685,0.000258,2]
[426887804,1782985838000,-2133.9749315,0.000267,2]
[426887786,1782985838000,-217.61,0.00026125,2]
[426887795,1782985838000,-5370.75548978,0.0002634,2]
[426887806,1782985838000,-205.69219555,0.000267,5]
[426887797,1782985838000,-314.22038384,0.00026419,2]
[426887817,1782985838000,-834.08597618,0.000268,2]
[426887815,1782985838000,-584.86221052,0.000268,2]
[426887816,1782985838000,-315.0,0.000268,2]
[426887814,1782985838000,-2218477.19320292,0.000268,2]
[426887809,1782985838000,-440.13768202,0.0002679,2]
[426887811,1782985838000,-666.0,0.00026799,2]
[426887813,1782985838000,-45611.90082654,0.000268,2]
[426887812,1782985838000,-109595.64269131,0.000268,2]
[426887796,1782985838000,-28083.93966186,0.000264,2]
[426887810,1782985838000,-300.0,0.00026799,10]
[426887808,1782985838000,-433.15199366,0.00026716,2]
[426887807,1782985838000,-1888.0,0.00026707,2]
[426887805,1782985838000,-180.86328756,0.000267,2]
[426887799,1782985838000,-500.0,0.000265,9]
[426887798,1782985838000,-180.86328756,0.0002643,2]
[426887802,1782985838000,-1500.0,0.000267,9]
[426887800,1782985838000,-259.0,0.00026521,2]
[426887803,1782985838000,-213.93682524,0.000267,2]
[426887801,1782985838000,-1000.0,0.000266,9]
[426887818,1782985838000,-1173.66848847,0.000268,2]
[426887819,1782985838000,-9099.64063257,0.000268,2]
[426887890,1782985842000,-753.74143178,0.000267,2]
[426887894,1782985842000,-9077.54866152,0.000268,2]
[426887891,1782985842000,-8117.8578957,0.000268,2]
[426887893,1782985842000,-8943.78386462,0.000268,2]
[426887892,1782985842000,-8947.21879473,0.000268,2]
[426887895,1782985842000,-9517.96501178,0.000268,2]
[426887898,1782985843000,-789.78103044,0.000268,2]
[426887917,1782985843000,-87601.54389836,0.000268,2]
[426887916,1782985843000,-934.0,0.000268,2]
[426887918,1782985843000,-18605.5,0.000268,2]
[426887919,1782985843000,-1478.26274838,0.000268,2]
[426887920,1782985843000,-1569.06015368,0.000268,2]
[426887921,1782985843000,-3614.36264472,0.000268,2]
[426887925,1782985843000,-885.4,0.000268,2]
[426887904,1782985843000,-455.93069983,0.000268,2]
[426887924,1782985843000,-306.945,0.000268,2]
[426887922,1782985843000,-2351.81371741,0.000268,2]
[426887926,1782985843000,-634.28,0.000268,2]
[426887943,1782985843000,-1198.80223184,0.000268,2]
[426887946,1782985843000,-1218740.00000032,0.000268,2]
[426887956,1782985843000,-1729.88134387,0.000268,2]
[426887952,1782985843000,-512.6900035,0.000268,2]
[426887949,1782985843000,-2340.03151457,0.000268,2]
[426887954,1782985843000,-3000.0,0.000268,2]
[426887923,1782985843000,-1625.68933338,0.000268,2]
[426887996,1782985846000,-10153.83439087,0.000268,2]
[426887997,1782985846000,-42390.14749684,0.000268,2]
[426887995,1782985846000,-1794.0,0.000258,2]
[426887994,1782985846000,-245.71,0.00024658,2]
[426887998,1782985847000,-304.30723393,0.000268,2]
[426887999,1782985847000,-829.55888821,0.000268,2]
[426888000,1782985847000,-1096.4311597,0.000268,2]
[426888103,1782985921000,-302.79512472,0.00014999,2]
[426888102,1782985921000,-192.47893566,0.00014999,2]
[426888101,1782985921000,-257.20752962,0.00014999,2]
[426888100,1782985921000,-500.0,0.00014999,2]
[426888099,1782985921000,-158.64649636,0.00014999,2]
[426888104,1782986060000,5534.2419,0.000267,120]
[426888105,1782986109000,562.48534321,0.00029673,120]
[426888106,1782986127000,3753.2606,0.000267,120]
[426888107,1782986216000,500.0,0.00029673,120]
[426888108,1782986247000,500.0,0.00029673,120]
[426888110,1782986299000,500.0,0.00014999,2]
[426888112,1782986299000,150.0,0.00014999,2]
[426888111,1782986299000,164.24744569,0.00014999,2]
[426888119,1782986595000,-104.80244569,0.00014999,2]
[426888118,1782986595000,-500.0,0.00014999,2]
[426888117,1782986595000,-500.0,0.00014999,2]
[426888116,1782986595000,-500.0,0.00014999,2]
[426888115,1782986595000,-185.75255431,0.00014999,2]
[426888122,1782986623000,-362.96244569,0.00014999,2]
[426888121,1782986623000,-500.0,0.00014999,2]
[426888120,1782986623000,-395.19755431,0.00014999,2]
[426888125,1782986720000,-250.0,0.00016499,2]
[426888123,1782986720000,-57.15105115,0.00014999,2]
[426888124,1782986720000,-165.62319996,0.00015661,2]
[426888126,1782986720000,-876.25,0.00017645,2]
[426888139,1782986933000,-385.52,0.00018016,2]
[426888140,1782986946000,2000.0,0.00029672,120]
[426888154,1782987032000,-154.0,0.00024,2]
[426888160,1782987032000,-500.0,0.00024658,2]
[426888158,1782987032000,-159.0,0.00024,2]
[426888161,1782987032000,-500.0,0.00024658,2]
[426888153,1782987032000,-156.0,0.00024,2]
[426888156,1782987032000,-163.0,0.00024,2]
[426888157,1782987032000,-167.0,0.00024,2]
[426888155,1782987032000,-167.0,0.00024,2]
[426888152,1782987032000,-153.0,0.00024,2]
[426888143,1782987032000,-31727.42717121,0.0002,2]
[426888148,1782987032000,-500.0,0.00024,2]
[426888145,1782987032000,-208.18393976,0.000239,2]
[426888149,1782987032000,-158.0,0.00024,2]
[426888150,1782987032000,-154.0,0.00024,2]
[426888147,1782987032000,-169.79097146,0.00024,2]
[426888146,1782987032000,-168.0,0.00024,2]
[426888144,1782987032000,-503.0,0.00021014,2]
[426888142,1782987032000,-12678.33094849,0.0002,2]
[426888141,1782987032000,-5534.2418803,0.0002,2]
[426888151,1782987032000,-166.0,0.00024,2]
[426888159,1782987032000,-2401.89,0.0002462,2]
[426888173,1782987032000,-186.0,0.0002492,2]
[426888162,1782987032000,-558.323187,0.00024658,2]
[426888163,1782987032000,-173.58,0.00024658,2]
[426888183,1782987032000,-500.0,0.00024999,2]
[426888182,1782987032000,-500.0,0.00024999,2]
[426888184,1782987032000,-500.0,0.00024999,2]
[426888180,1782987032000,-500.0,0.00024999,2]
[426888178,1782987032000,-500.0,0.00024999,2]
[426888181,1782987032000,-500.0,0.00024999,2]
[426888177,1782987032000,-500.0,0.00024999,2]
[426888176,1782987032000,-286.04618486,0.00024999,2]
[426888175,1782987032000,-170.84,0.00024984,2]
[426888179,1782987032000,-500.0,0.00024999,2]
[426888170,1782987032000,-644.15,0.00024767,2]
[426888174,1782987032000,-150.85553737,0.00024967,2]
[426888165,1782987032000,-169.19,0.00024658,2]
[426888166,1782987032000,-310.75,0.00024671,2]
[426888167,1782987032000,-1000.0,0.00024708,2]
[426888164,1782987032000,-169.63,0.00024658,2]
[426888168,1782987032000,-343.29,0.00024744,2]
[426888169,1782987032000,-5000.0,0.00024753,2]
[426888172,1782987032000,-26809.53,0.00024864,2]
[426888171,1782987032000,-3728.81,0.0002478,2]
[426888218,1782987033000,-1618.33,0.00025405,2]
[426888211,1782987033000,-3830.21,0.00025,2]
[426888219,1782987033000,-504.08865584,0.00025548,2]
[426888212,1782987033000,-163.0,0.00025,2]
[426888213,1782987033000,-500.0,0.00025,2]
[426888220,1782987033000,-215.84716809,0.00025564,2]
[426888216,1782987033000,-500.0,0.00025274,2]
[426888214,1782987033000,-152.0,0.00025115,3]
[426888215,1782987033000,-165.27,0.00025257,2]
[426888217,1782987033000,-644.15,0.00025386,2]
[426888228,1782987033000,-262.46,0.00025803,2]
[426888222,1782987033000,-5684.8291,0.00025699,2]
[426888231,1782987033000,-174.0,0.00026,2]
[426888230,1782987033000,-150.0,0.00025955,5]
[426888225,1782987033000,-5036.08,0.00025786,2]
[426888223,1782987033000,-299.99,0.00025786,12]
[426888232,1782987033000,-154.0,0.00026,2]
[426888229,1782987033000,-5521.0,0.000259,5]
[426888224,1782987033000,-999.99,0.00025786,2]
[426888227,1782987033000,-2138.37,0.000258,2]
[426888210,1782987033000,-5745.81,0.00025,2]
[426888221,1782987033000,-231.34267006,0.00025564,2]
[426888202,1782987033000,-2977.32,0.00025,2]
[426888197,1782987033000,-500.0,0.00024999,2]
[426888204,1782987033000,-154.0,0.00025,2]
[426888186,1782987033000,-500.0,0.00024999,2]
[426888185,1782987033000,-500.0,0.00024999,2]
[426888188,1782987033000,-500.0,0.00024999,2]
[426888187,1782987033000,-500.0,0.00024999,2]
[426888189,1782987033000,-500.0,0.00024999,2]
[426888190,1782987033000,-500.0,0.00024999,2]
[426888191,1782987033000,-395.58163444,0.00024999,2]
[426888193,1782987033000,-550.0,0.00024999,2]
[426888194,1782987033000,-500.0,0.00024999,2]
[426888192,1782987033000,-500.0,0.00024999,2]
[426888195,1782987033000,-500.0,0.00024999,2]
[426888196,1782987033000,-500.0,0.00024999,2]
[426888226,1782987033000,-9290.58,0.00025786,2]
[426888199,1782987033000,-500.0,0.00024999,2]
[426888198,1782987033000,-500.0,0.00024999,2]
[426888201,1782987033000,-4466.47,0.00025,2]
[426888200,1782987033000,-10423.11,0.00025,2]
[426888205,1782987033000,-7926.21,0.00025,2]
[426888208,1782987033000,-156.0,0.00025,2]
[426888206,1782987033000,-3396.38,0.00025,2]
[426888203,1782987033000,-158.0,0.00025,2]
[426888207,1782987033000,-2263.92,0.00025,2]
[426888233,1782987033000,-156.0,0.00026,2]
[426888209,1782987033000,-13408.22,0.00025,2]
[426888236,1782987033000,-211.97610217,0.0002612,2]
[426888260,1782987033000,-427.51082192,0.00026135,2]
[426888283,1782987033000,-20929.11155715,0.000268,2]
[426888263,1782987033000,-311.31750956,0.00026135,2]
[426888259,1782987033000,-361.71706959,0.00026135,2]
[426888265,1782987033000,-392.10498283,0.00026135,2]
[426888267,1782987033000,-2500.0,0.00026623,2]
[426888275,1782987033000,-500.0,0.00026722,2]
[426888269,1782987033000,-12775.38354788,0.00026699,2]
[426888276,1782987033000,-500.0,0.00026722,2]
[426888268,1782987033000,-644.15,0.00026624,2]
[426888261,1782987033000,-218.47797966,0.00026135,2]
[426888270,1782987033000,-272.547,0.000267,2]
[426888278,1782987033000,-500.0,0.00026722,2]
[426888271,1782987033000,-193.81108382,0.00026722,2]
[426888273,1782987033000,-391.0807782,0.00026722,2]
[426888272,1782987033000,-500.0,0.00026722,2]
[426888274,1782987033000,-302.94116692,0.00026722,2]
[426888280,1782987033000,-500.0,0.00026799,2]
[426888279,1782987033000,-287588.2530204,0.00026723,2]
[426888281,1782987033000,-500.0,0.00026799,2]
[426888282,1782987033000,-500.0,0.00026799,2]
[426888234,1782987033000,-163.0,0.00026,2]
[426888277,1782987033000,-500.0,0.00026722,2]
[426888266,1782987033000,-4378.4826,0.00026623,2]
[426888262,1782987033000,-431.70557937,0.00026135,2]
[426888257,1782987033000,-337.37375833,0.00026135,2]
[426888238,1782987033000,-431.69433618,0.0002612,2]
[426888237,1782987033000,-324.93948856,0.0002612,2]
[426888235,1782987033000,-644.15,0.00026005,2]
[426888242,1782987033000,-360.18773848,0.0002612,2]
[426888239,1782987033000,-462.68534012,0.0002612,2]
[426888240,1782987033000,-353.29054109,0.0002612,2]
[426888243,1782987033000,-177.4123005,0.0002612,2]
[426888264,1782987033000,-406.50788367,0.00026135,2]
[426888245,1782987033000,-388.38969193,0.0002612,2]
[426888244,1782987033000,-304.63168673,0.0002612,2]
[426888246,1782987033000,-313.90623354,0.0002612,2]
[426888241,1782987033000,-302.93218442,0.0002612,2]
[426888249,1782987033000,-184.96,0.00026125,2]
[426888258,1782987033000,-366.77494221,0.00026135,2]
[426888248,1782987033000,-237.99476169,0.0002612,2]
[426888255,1782987033000,-167.52780625,0.00026135,2]
[426888251,1782987033000,-393.56554576,0.00026135,2]
[426888256,1782987033000,-428.04263791,0.00026135,2]
[426888254,1782987033000,-169.48591583,0.00026135,2]
[426888252,1782987033000,-368.49119015,0.00026135,2]
[426888247,1782987033000,-160.73161154,0.0002612,2]
[426888250,1782987033000,-267.79038048,0.00026135,2]
[426888253,1782987033000,-293.52280167,0.00026135,2]
[426888300,1782987038000,-507.82,0.000268,7]
[426888293,1782987038000,-249.65005966,0.000192,2]
[426888295,1782987038000,-169.35,0.00024658,2]
[426888296,1782987038000,-145.39683382,0.0002599,2]
[426888294,1782987038000,-408.89717003,0.00020214,2]
[426888297,1782987038000,-28646.089089,0.0002599,2]
[426888298,1782987038000,-180654.40838873,0.000268,2]
[426888301,1782987038000,-200.0,0.000268,2]
[426888302,1782987038000,-682.81,0.000268,7]
[426888299,1782987038000,-1815.0,0.000268,2]
[426888304,1782987038000,-376.68596794,0.00026827,2]
[426888305,1782987038000,-313.51053462,0.00026827,2]
[426888306,1782987038000,-150.85553737,0.00026887,2]
[426888307,1782987038000,-400.0,0.000269,9]
[426888308,1782987038000,-1769.0,0.00026967,2]
[426888309,1782987038000,-1823.0,0.00026973,2]
[426888311,1782987038000,-156.0,0.00027,2]
[426888313,1782987038000,-163.80783072,0.00027043,2]
[426888310,1782987038000,-166.0,0.00027,2]
[426888312,1782987038000,-163.0,0.00027,2]
[426888303,1782987038000,-4380.65773947,0.00026816,2]
[426888359,1782987039000,-11667.88286798,0.00027486,2]
[426888351,1782987039000,-975.88713842,0.000274,2]
[426888357,1782987039000,-160.0,0.00027453,2]
[426888353,1782987039000,-281.22,0.000274,2]
[426888350,1782987039000,-10441.33851662,0.000274,2]
[426888349,1782987039000,-1937.28494938,0.000274,2]
[426888352,1782987039000,-281.22,0.000274,2]
[426888354,1782987039000,-281.22,0.000274,2]
[426888369,1782987039000,-975.88713842,0.000277,2]
[426888356,1782987039000,-281.22,0.000274,2]
[426888355,1782987039000,-281.22,0.000274,2]
[426888358,1782987039000,-7908.46057476,0.00027456,2]
[426888366,1782987039000,-584.0,0.00027619,2]
[426888361,1782987039000,-205.38,0.00027523,2]
[426888364,1782987039000,-628.08,0.00027608,2]
[426888363,1782987039000,-492.58,0.00027604,7]
[426888347,1782987039000,-407.32,0.000274,7]
[426888362,1782987039000,-1785.0,0.00027603,2]
[426888365,1782987039000,-200.0,0.00027612,2]
[426888370,1782987039000,-12775.38354784,0.00027766,2]
[426888367,1782987039000,-1937.28494938,0.000277,2]
[426888368,1782987039000,-10441.33851662,0.000277,2]
[426888373,1782987039000,-1937.28494938,0.000279,2]
[426888371,1782987039000,-628.08,0.00027819,2]
[426888372,1782987039000,-200.0,0.00027888,2]
[426888374,1782987039000,-10441.33851662,0.000279,2]
[426888360,1782987039000,-500.0,0.000275,7]
[426888348,1782987039000,-260.49,0.000274,7]
[426888343,1782987039000,-1500.0,0.00027397,2]
[426888344,1782987039000,-2120.95,0.00027397,10]
[426888376,1782987039000,-7444.79,0.00028,2]
[426888314,1782987039000,-200.0,0.00027068,2]
[426888316,1782987039000,-10441.33851662,0.000271,2]
[426888317,1782987039000,-975.88713842,0.000271,2]
[426888318,1782987039000,-189.77159536,0.000271,2]
[426888315,1782987039000,-1937.28494938,0.000271,2]
[426888319,1782987039000,-160.0,0.00027128,2]
[426888321,1782987039000,-347.89,0.00027145,2]
[426888325,1782987039000,-1767.0,0.00027164,2]
[426888323,1782987039000,-216.69616408,0.00027148,2]
[426888327,1782987039000,-1804.0,0.0002717,2]
[426888330,1782987039000,-1792.0,0.00027177,2]
[426888341,1782987039000,-184.90772972,0.00027397,2]
[426888320,1782987039000,-509.0,0.00027137,2]
[426888332,1782987039000,-1815.0,0.00027183,2]
[426888331,1782987039000,-1769.0,0.00027177,2]
[426888333,1782987039000,-27135.86222711,0.00027201,2]
[426888335,1782987039000,-12775.38354784,0.00027232,2]
[426888339,1782987039000,-265.419946,0.00027342,14]
[426888337,1782987039000,-1784.0,0.00027266,2]
[426888338,1782987039000,-200.0,0.00027339,2]
[426888336,1782987039000,-644.15,0.00027244,2]
[426888340,1782987039000,-165.27,0.00027362,2]
[426888342,1782987039000,-628.09,0.00027397,2]
[426888346,1782987039000,-3026.52,0.00027397,10]
[426888345,1782987039000,-3631.82,0.00027397,10]
[426888334,1782987039000,-1816.0,0.00027223,2]
[426888379,1782987039000,-9577.02,0.00028,2]
[426888418,1782987039000,-160.0,0.000286,7]
[426888377,1782987039000,-5661.29,0.00028,2]
[426888409,1782987039000,-1500.0,0.00028387,2]
[426888419,1782987039000,-572.19642398,0.00028619,14]
[426888416,1782987039000,-10441.33851662,0.000285,2]
[426888413,1782987039000,-172.50867144,0.00028387,2]
[426888410,1782987039000,-1500.0,0.00028387,2]
[426888417,1782987039000,-15730.62276641,0.000286,7]
[426888411,1782987039000,-1500.0,0.00028387,2]
[426888414,1782987039000,-628.08,0.00028451,2]
[426888415,1782987039000,-1937.28494938,0.000285,2]
[426888412,1782987039000,-1500.0,0.00028387,2]
[426888420,1782987039000,-855.97162945,0.00028619,14]
[426888429,1782987039000,-12775.38354784,0.00028833,2]
[426888408,1782987039000,-1500.0,0.00028387,2]
[426888421,1782987039000,-1158.1515,0.00028619,14]
[426888425,1782987039000,-509.0,0.00028692,3]
[426888424,1782987039000,-522.21316661,0.00028662,2]
[426888423,1782987039000,-590.1326755,0.00028661,2]
[426888422,1782987039000,-1348.22543929,0.00028646,15]
[426888426,1782987039000,-1937.28494938,0.000288,2]
[426888427,1782987039000,-10441.33851662,0.000288,2]
[426888430,1782987039000,-497.6091356,0.00028835,2]
[426888432,1782987039000,-169.34,0.00028865,2]
[426888433,1782987039000,-169.19,0.00028885,2]
[426888431,1782987039000,-152.0,0.00028843,4]
[426888381,1782987039000,-628.08,0.0002803,2]
[426888435,1782987039000,-900.0,0.000289,10]
[426888428,1782987039000,-150.85553737,0.00028808,2]
[426888401,1782987039000,-500.0,0.00028387,2]
[426888434,1782987039000,-1201.97002594,0.000289,2]
[426888407,1782987039000,-1500.0,0.00028387,2]
[426888406,1782987039000,-1500.0,0.00028387,2]
[426888380,1782987039000,-163.0,0.00028,2]
[426888382,1782987039000,-324.3525948,0.00028119,14]
[426888378,1782987039000,-170.0,0.00028,2]
[426888384,1782987039000,-500.0,0.00028199,7]
[426888383,1782987039000,-436.07852556,0.00028185,2]
[426888385,1782987039000,-500.0,0.00028199,7]
[426888394,1782987039000,-12775.38354784,0.00028299,2]
[426888387,1782987039000,-407.32,0.000282,7]
[426888386,1782987039000,-500.0,0.00028199,14]
[426888388,1782987039000,-260.49,0.000282,7]
[426888390,1782987039000,-10441.33851662,0.000282,2]
[426888392,1782987039000,-165.78,0.00028211,2]
[426888375,1782987039000,-975.88713842,0.000279,2]
[426888391,1782987039000,-975.88713842,0.000282,2]
[426888403,1782987039000,-590.1326755,0.00028387,2]
[426888402,1782987039000,-1500.0,0.00028387,2]
[426888404,1782987039000,-1500.0,0.00028387,2]
[426888397,1782987039000,-590.0,0.00028364,5]
[426888389,1782987039000,-1937.28494938,0.000282,2]
[426888399,1782987039000,-170.32,0.00028372,3]
[426888405,1782987039000,-1500.0,0.00028387,2]
[426888400,1782987039000,-170.32,0.00028372,3]
[426888398,1782987039000,-495.5,0.00028364,7]
[426888395,1782987039000,-10000.0,0.000283,30]
[426888393,1782987039000,-628.08,0.0002824,2]
[426888396,1782987039000,-160.0,0.000283,30]
[426888475,1782987040000,-248.87,0.00029123,7]
[426888471,1782987040000,-10441.33851662,0.000291,2]
[426888476,1782987040000,-355.18,0.00029123,7]
[426888474,1782987040000,-327.87,0.00029115,7]
[426888467,1782987040000,-248.87,0.00029097,7]
[426888470,1782987040000,-1937.28494938,0.000291,2]
[426888469,1782987040000,-500.0,0.00029099,14]
[426888466,1782987040000,-355.18,0.00029097,7]
[426888468,1782987040000,-500.0,0.00029099,7]
[426888463,1782987040000,-1231.0,0.00029066,2]
[426888473,1782987040000,-3701.806,0.00029103,2]
[426888472,1782987040000,-6089.0,0.00029103,2]
[426888483,1782987040000,-248.87,0.00029227,2]
[426888477,1782987040000,-461.61691313,0.00029196,2]
[426888486,1782987040000,-169.35,0.00029232,7]
[426888480,1782987040000,-327.87,0.0002922,2]
[426888487,1782987040000,-327.87,0.00029243,2]
[426888478,1782987040000,-150.0,0.00029196,2]
[426888488,1782987040000,-248.87,0.0002925,2]
[426888484,1782987040000,-169.19,0.00029232,7]
[426888482,1782987040000,-355.18,0.00029227,2]
[426888489,1782987040000,-355.18,0.0002925,2]
[426888490,1782987040000,-201.81200805,0.00029294,2]
[426888465,1782987040000,-327.87,0.00029089,7]
[426888501,1782987040000,-165.27,0.00029466,2]
[426888479,1782987040000,-590.1326755,0.00029209,2]
[426888461,1782987040000,-154.0,0.00029,4]
[426888448,1782987040000,-355.18,0.00028997,30]
[426888464,1782987040000,-201.81200805,0.00029083,2]
[426888491,1782987040000,-327.87,0.00029351,30]
[426888441,1782987040000,-327.87,0.00028959,30]
[426888442,1782987040000,-355.18,0.00028968,30]
[426888439,1782987040000,-590.1326755,0.00028935,2]
[426888440,1782987040000,-1500.0,0.00028935,2]
[426888438,1782987040000,-518.5,0.00028935,2]
[426888437,1782987040000,-436.07852556,0.00028928,2]
[426888436,1782987040000,-157.0,0.00028914,10]
[426888443,1782987040000,-248.87,0.00028968,30]
[426888446,1782987040000,-397.9466056,0.0002899,2]
[426888449,1782987040000,-500.0,0.00028999,7]
[426888447,1782987040000,-248.87,0.00028997,30]
[426888450,1782987040000,-189.2,0.00028999,7]
[426888445,1782987040000,-327.87,0.00028988,30]
[426888451,1782987040000,-500.0,0.00028999,14]
[426888444,1782987040000,-73125.12741403,0.0002897,6]
[426888453,1782987040000,-407.32,0.00029,7]
[426888455,1782987040000,-260.49,0.00029,7]
[426888454,1782987040000,-290309.87750576,0.00029,5]
[426888452,1782987040000,-19841.21859133,0.00029,2]
[426888457,1782987040000,-669.09185747,0.00029,2]
[426888458,1782987040000,-212.12218535,0.00029,2]
[426888456,1782987040000,-1256.62575978,0.00029,7]
[426888460,1782987040000,-154.0,0.00029,4]
[426888462,1782987040000,-180.0,0.00029,2]
[426888459,1782987040000,-154.0,0.00029,4]
[426888502,1782987040000,-327.87,0.00029482,7]
[426888535,1782987040000,-696.39431812,0.0003,15]
[426888492,1782987040000,-355.18,0.00029357,30]
[426888528,1782987040000,-3398.67068234,0.00029916,2]
[426888531,1782987040000,-200.0,0.0002997,2]
[426888530,1782987040000,-200.0,0.0002997,2]
[426888532,1782987040000,-200.0,0.0002997,2]
[426888526,1782987040000,-10441.33851662,0.000299,2]
[426888533,1782987040000,-10834.54784323,0.0003,3]
[426888529,1782987040000,-201.81200805,0.00029926,2]
[426888534,1782987040000,-1212.44,0.0003,10]
[426888527,1782987040000,-1400.0,0.000299,10]
[426888550,1782987040000,-506.19,0.000301,7]
[426888537,1782987040000,-590.1326755,0.00030031,2]
[426888536,1782987040000,-160.0,0.0003,3]
[426888539,1782987040000,-500.0,0.00030089,14]
[426888540,1782987040000,-304405.97258453,0.0003009,2]
[426888538,1782987040000,-500.0,0.00030089,7]
[426888541,1782987040000,-506.19,0.000301,7]
[426888542,1782987040000,-506.19,0.000301,7]
[426888545,1782987040000,-506.19,0.000301,7]
[426888544,1782987040000,-506.19,0.000301,7]
[426888543,1782987040000,-506.19,0.000301,7]
[426888547,1782987040000,-506.19,0.000301,7]
[426888548,1782987040000,-506.19,0.000301,7]
[426888549,1782987040000,-506.19,0.000301,7]
[426888551,1782987040000,-506.19,0.000301,7]
[426888493,1782987040000,-248.87,0.00029357,30]
[426888522,1782987040000,-590.1326755,0.00029757,2]
[426888521,1782987040000,-201.81200805,0.00029715,2]
[426888546,1782987040000,-506.19,0.000301,7]
[426888517,1782987040000,-500.0,0.00029673,60]
[426888520,1782987040000,-200.0,0.00029673,2]
[426888495,1782987040000,-327.87,0.0002937,30]
[426888497,1782987040000,-355.18,0.00029376,30]
[426888496,1782987040000,-248.87,0.00029376,30]
[426888500,1782987040000,-10441.33851662,0.000294,2]
[426888498,1782987040000,-1937.28494938,0.000294,2]
[426888504,1782987040000,-355.18,0.00029487,7]
[426888505,1782987040000,-248.87,0.00029487,7]
[426888503,1782987040000,-590.1326755,0.00029483,2]
[426888510,1782987040000,-201.81200805,0.00029505,2]
[426888511,1782987040000,-497.60913557,0.00029513,2]
[426888507,1782987040000,-37397.98953208,0.000295,7]
[426888509,1782987040000,-355.18,0.00029503,7]
[426888494,1782987040000,-12775.38354784,0.00029366,2]
[426888515,1782987040000,-250.0,0.00029663,7]
[426888506,1782987040000,-327.87,0.00029498,7]